{"text_format":"3","workbook":"xlsx","n_sheets":2,"sheets":["Arvio karkearehun tarpeesta","Rehunkulutuksen seuranta"],"not_rendered":{"images":3,"defined_names":2},"read":"whole","date_system":"1900"}

{"sheet":"Arvio karkearehun tarpeesta","index":0,"n_rows":22,"n_cols":18,"rows_kept":22,"merged":[[5,1,5,2]]}
[]
[]
["Tosilampurin tietolaari-hanke "]
["ProAgria Etelä-Savo "]
[]
["Arvio karkearehun tarpeesta",{"$f":"TODAY()","v":"2024-11-28"}]
[null,"Paalimäärä","Paalinpaino","Kuiva-aine","Paalihävikki","Rehua","Kuiva-ainetta","Uuhen tarve","Syöntipäivät","Uuhia","Karitsan tarve","Syöntipäivät","Karitsat","Ruokintahävikki","Kuiva-aine","Varaston lopussa","Rehutarve","Varasto lopussa"]
["Paalin tunniste","kpl","kg","g/kg","kpl","kg","kg","Kg ka/pvä","kpl","kpl","Kg ka/pvä","kpl","kpl","% rehu kg:sta","tarve kg","kg ka","Paalia","Paalia"]
["Kevätsato1",250,350,560,5,{"$f":"(B9-E9)*C9","v":85750},{"$f":"(F9*(D9/1000))","v":48020.00000000001},2,183,100,0.7,50,250,10,{"$f":"((H9*I9*J9)+(K9*L9*M9))*(1+(N9/100))","v":49885.00000000001},{"$f":"(G9-O9)","v":{"v":-1865,"d":"-1865 "}},{"$f":"IF(B9>0,O9/((C9*D9)/1000)+E9,0)","v":{"v":259.51530612244903,"d":"260"}},{"$f":"B9-Q9","v":{"v":-9.515306122449033,"d":"-10 "}}]
["Kevätsato2",{"$nulls":4},{"$f":"(B10-E10)*C10","v":0},{"$f":"(F10*(D10/1000))","v":0},{"$nulls":7},{"$f":"((H10*I10*J10)+(K10*L10*M10))*(1+(N10/100))","v":0},{"$f":"(G10-O10)","v":0},{"$f":"IF(B10>0,O10/((C10*D10)/1000)+E10,0)","v":0},{"$f":"B10-Q10","v":0}]
["Kesäsato1",{"$nulls":4},{"$f":"(B11-E11)*C11","v":0},0,{"$nulls":7},0,0,{"$f":"IF(B11>0,O11/((C11*D11)/1000)+E11,0)","v":0},0]
["Kesäsato2",{"$nulls":4},0,0,{"$nulls":7},0,0,0,0]
["Syyssato",{"$nulls":4},0,0,{"$nulls":7},0,0,0,0]
["Sinimailanen",{"$nulls":4},0,0,{"$nulls":7},0,0,0,0]
["Kuiva heinä pp",{"$nulls":4},0,0,{"$nulls":7},0,0,0,0]
["Heinä muovissa",{"$nulls":4},0,0,{"$nulls":7},0,0,0,0]
["Syöttöolki",{"$nulls":4},0,0,{"$nulls":7},0,0,0,0]
["Sato x",{"$nulls":4},0,0,{"$nulls":7},0,0,0,0]
["Sato x",{"$nulls":4},0,0,{"$nulls":7},0,0,0,0]
["Sato x",{"$nulls":4},0,0,{"$nulls":7},0,0,0,0]
["Sato x",{"$nulls":4},0,0,{"$nulls":7},0,0,0,0]
["Sato x",{"$nulls":4},0,0,{"$nulls":7},0,0,0,0]

{"sheet":"Rehunkulutuksen seuranta","index":1,"n_rows":26,"n_cols":29,"rows_kept":26,"merged":[[6,5,6,6],[6,7,6,8],[6,9,6,10],[6,11,6,12],[6,13,6,14],[6,15,6,16],[6,17,6,18],[6,19,6,20],[6,21,6,22],[6,23,6,24],[6,25,6,26],[6,27,6,28],[7,5,7,6],[7,7,7,8],[7,9,7,10],[7,11,7,12],[7,13,7,14],[7,15,7,16],[7,17,7,18],[7,19,7,20],[7,21,7,22],[7,23,7,24],[7,25,7,26],[7,27,7,28]]}
[]
["Tosilampurin tietolaari-hanke "]
["ProAgria Etelä-Savo "]
[{"$nulls":7},"Julkaisun rahoittaa Etelä-Savon ELY- keskus"]
["Rehunkulutuksen seuranta"]
["Kuukausittainen rehunkulutus"]
[{"$nulls":5},"kesäkuu",null,"heinäkuu",null,"elokuu",null,"syyskuu",null,"lokakuu",null,"marraskuu",null,"joulukuu",null,"tammikuu",null,"helmikuu",null,"maaliskuu",null,"huhtikuu",null,"toukokuu"]
[null,"Paalia","Paino","K-A",null,"kpl paalia",null,"kpl paalia",null,"kpl paalia",null,"kpl paalia",null,"kpl paalia",null,"kpl paalia",null,"kpl paalia",null,"kpl paalia",null,"kpl paalia",null,"kpl paalia",null,"kpl paalia",null,"kpl paalia"]
[{"$f":"'Arvio karkearehun tarpeesta'!A8","v":"Paalin tunniste"},{"$f":"'Arvio karkearehun tarpeesta'!B8","v":"kpl"},{"$f":"'Arvio karkearehun tarpeesta'!C8","v":"kg"},{"$f":"'Arvio karkearehun tarpeesta'!D8","v":"g/kg"},null,"alussa","Käytetty","alussa","Käytetty","alussa","Käytetty","alussa","Käytetty","alussa","Käytetty","alussa","Käytetty","alussa","Käytetty","alussa","Käytetty","alussa","Käytetty","alussa","Käytetty","alussa","Käytetty","alussa","Käytetty"]
[{"$f":"'Arvio karkearehun tarpeesta'!A9","v":"Kevätsato1"},{"$f":"'Arvio karkearehun tarpeesta'!B9","v":250},{"$f":"'Arvio karkearehun tarpeesta'!C9","v":350},{"$f":"'Arvio karkearehun tarpeesta'!D9","v":560},null,{"$f":"B10","v":250},2,{"$f":"F10-G10","v":248},null,{"$f":"H10-I10","v":248},null,{"$f":"J10-K10","v":248},null,{"$f":"L10-M10","v":248},null,{"$f":"N10-O10","v":248},null,{"$f":"P10-Q10","v":248},null,{"$f":"R10-S10","v":248},null,{"$f":"T10-U10","v":248},null,{"$f":"V10-W10","v":248},null,{"$f":"X10-Y10","v":248},null,{"$f":"Z10-AA10","v":248}]
[{"$f":"'Arvio karkearehun tarpeesta'!A10","v":"Kevätsato2"},{"$f":"'Arvio karkearehun tarpeesta'!B10","v":0},{"$f":"'Arvio karkearehun tarpeesta'!C10","v":0},{"$f":"'Arvio karkearehun tarpeesta'!D10","v":0},null,{"$f":"B11","v":0},null,{"$f":"F11-G11","v":0},null,0,null,0,null,0,null,0,null,0,null,0,null,0,null,0,null,0,null,{"$f":"Z11-AA11","v":0}]
[{"$f":"'Arvio karkearehun tarpeesta'!A11","v":"Kesäsato1"},{"$f":"'Arvio karkearehun tarpeesta'!B11","v":0},{"$f":"'Arvio karkearehun tarpeesta'!C11","v":0},{"$f":"'Arvio karkearehun tarpeesta'!D11","v":0},null,0,null,0,null,0,null,0,null,0,null,0,null,0,null,0,null,0,null,0,null,0,null,0]
[{"$f":"'Arvio karkearehun tarpeesta'!A12","v":"Kesäsato2"},{"$f":"'Arvio karkearehun tarpeesta'!B12","v":0},{"$f":"'Arvio karkearehun tarpeesta'!C12","v":0},{"$f":"'Arvio karkearehun tarpeesta'!D12","v":0},null,0,null,0,null,0,null,0,null,0,null,0,null,0,null,0,null,0,null,0,null,0,null,0]
[{"$f":"'Arvio karkearehun tarpeesta'!A13","v":"Syyssato"},{"$f":"'Arvio karkearehun tarpeesta'!B13","v":0},{"$f":"'Arvio karkearehun tarpeesta'!C13","v":0},{"$f":"'Arvio karkearehun tarpeesta'!D13","v":0},null,0,null,0,null,0,null,0,null,0,null,0,null,0,null,0,null,0,null,0,null,0,null,0]
[{"$f":"'Arvio karkearehun tarpeesta'!A14","v":"Sinimailanen"},{"$f":"'Arvio karkearehun tarpeesta'!B14","v":0},{"$f":"'Arvio karkearehun tarpeesta'!C14","v":0},{"$f":"'Arvio karkearehun tarpeesta'!D14","v":0},null,0,null,0,null,0,null,0,null,0,null,0,null,0,null,0,null,0,null,0,null,0,null,0]
[{"$f":"'Arvio karkearehun tarpeesta'!A15","v":"Kuiva heinä pp"},{"$f":"'Arvio karkearehun tarpeesta'!B15","v":0},{"$f":"'Arvio karkearehun tarpeesta'!C15","v":0},{"$f":"'Arvio karkearehun tarpeesta'!D15","v":0},null,0,null,0,null,0,null,0,null,0,null,0,null,0,null,0,null,0,null,0,null,0,null,0]
[{"$f":"'Arvio karkearehun tarpeesta'!A16","v":"Heinä muovissa"},{"$f":"'Arvio karkearehun tarpeesta'!B16","v":0},{"$f":"'Arvio karkearehun tarpeesta'!C16","v":0},{"$f":"'Arvio karkearehun tarpeesta'!D16","v":0},null,0,null,0,null,0,null,0,null,0,null,0,null,0,null,0,null,0,null,0,null,0,null,0]
[{"$f":"'Arvio karkearehun tarpeesta'!A17","v":"Syöttöolki"},{"$f":"'Arvio karkearehun tarpeesta'!B17","v":0},{"$f":"'Arvio karkearehun tarpeesta'!C17","v":0},{"$f":"'Arvio karkearehun tarpeesta'!D17","v":0},null,0,null,0,null,0,null,0,null,0,null,0,null,0,null,0,null,0,null,0,null,0,null,0]
[{"$f":"'Arvio karkearehun tarpeesta'!A18","v":"Sato x"},{"$f":"'Arvio karkearehun tarpeesta'!B18","v":0},{"$f":"'Arvio karkearehun tarpeesta'!C18","v":0},{"$f":"'Arvio karkearehun tarpeesta'!D18","v":0},null,0,null,0,null,0,null,0,null,0,null,0,null,0,null,0,null,0,null,0,null,0,null,0]
[{"$f":"'Arvio karkearehun tarpeesta'!A19","v":"Sato x"},{"$f":"'Arvio karkearehun tarpeesta'!B19","v":0},{"$f":"'Arvio karkearehun tarpeesta'!C19","v":0},{"$f":"'Arvio karkearehun tarpeesta'!D19","v":0},null,0,null,0,null,0,null,0,null,0,null,0,null,0,null,0,null,0,null,0,null,0,null,0]
[{"$f":"'Arvio karkearehun tarpeesta'!A20","v":"Sato x"},{"$f":"'Arvio karkearehun tarpeesta'!B20","v":0},{"$f":"'Arvio karkearehun tarpeesta'!C20","v":0},{"$f":"'Arvio karkearehun tarpeesta'!D20","v":0},null,0,null,0,null,0,null,0,null,0,null,0,null,0,null,0,null,0,null,0,null,0,null,0]
[{"$f":"'Arvio karkearehun tarpeesta'!A21","v":"Sato x"},{"$f":"'Arvio karkearehun tarpeesta'!B21","v":0},{"$f":"'Arvio karkearehun tarpeesta'!C21","v":0},{"$f":"'Arvio karkearehun tarpeesta'!D21","v":0},null,0,null,0,null,0,null,0,null,0,null,0,null,0,null,0,null,0,null,0,null,0,null,0]
[{"$f":"'Arvio karkearehun tarpeesta'!A22","v":"Sato x"},{"$f":"'Arvio karkearehun tarpeesta'!B22","v":0},{"$f":"'Arvio karkearehun tarpeesta'!C22","v":0},{"$f":"'Arvio karkearehun tarpeesta'!D22","v":0},null,0,null,0,null,0,null,0,null,0,null,0,null,0,null,0,null,0,null,0,null,0,null,0]
[]
["Lampaita syömässä",{"$nulls":5},"kpl",null,"kpl",null,"kpl",null,"kpl",null,"kpl",null,"kpl",null,"kpl",null,"kpl",null,"kpl",null,"kpl",null,"kpl",null,"kpl"]
["Karitsoita syömässä",{"$nulls":5},"kpl",null,"kpl",null,"kpl",null,"kpl",null,"kpl",null,"kpl",null,"kpl",null,"kpl",null,"kpl",null,"kpl",null,"kpl",null,"kpl"]